[Event "Charlotte Summer IM B 2022"]
[Site "Charlotte"]
[Date "2022.07.28"]
[Round "7.5"]
[White "Wang, Tianqi"]
[Black "Eckert, Doug"]
[Result "1-0"]
[ECO "C68"]
[WhiteElo "2402"]
[BlackElo "2177"]
[Annotator "TA"]
[PlyCount "99"]
[EventDate "2022.07.24"]
[EventType "tourn"]
[EventCountry "USA"]
[SourceTitle "playchess.com"]
[Source "ChessBase"]
[SourceQuality "1"]
[TimeControl "5400+30"]

{[%evp 9,99,19,19,19,19,17,23,33,30,30,30,30,32,31,46,33,42,38,36,1,43,0,0,0,0,0,20,6,53,50,48,22,30,5,23,0,0,0,0,0,37,0,0,0,0,0,51,31,125,117,89,95,121,125,98,124,126,108,305,218,335,329,328,346,347,343,337,315,379,366,363,338,368,360,750,720,2062,1881,1372,1218,29964,29968,29986,29987,29986,29978,29978,29979,29978,29979,29997,203]} 1. e4 {[%emt 0:03:19]} e5 {[%emt 0:02:52]} 2. Nf3 {[%emt 0:00:06]} Nc6 {[%emt 0:00:12]} 3. Bb5 {[%emt 0:00:05]} a6 {[%emt 0:00:04]} 4. Bxc6 {[%emt 0:00:05]} dxc6 {[%emt 0:00:05]} 5. O-O {[%emt 0:00:08]} Qf6 {[%emt 0:00:06]} 6. d4 {[%emt 0:00:07] C68: Ruy Lopez: Exchange Variation, sidelines.} exd4 {[%emt 0:00:09]} 7. Bg5 {[%emt 0:00:04]} Qd6 {[%emt 0:04:40]} 8. Nxd4 {[%emt 0:00:12] White has an edge.} c5 {[%emt 0:09:45]} 9. Nb3 {[%emt 0:00:19]} Qxd1 {[%emt 0:00:05]} 10. Rxd1 {[%emt 0:00:03][%csl Gg5][%cal Rd1d8] [#]} Be6 $146 {[%emt 0:02:30]} ({Predecessor:} 10... Bd7 11. Nc3 f6 12. Be3 b6 13. Nd5 Ra7 14. Bf4 Kd8 15. Rd2 Ne7 16. Rad1 Nxd5 17. Rxd5 {½-½ (40) Antognini,F (2272)-Lipecki,A (2162) Flims 2012}) 11. Bf4 {[%emt 0:00:28]} Rc8 {[%emt 0:07:22]} 12. Nc3 {[%emt 0:01:31]} Nf6 {[%emt 0:00:33]} 13. f3 {[%emt 0:00:26]} b6 {[%emt 0:04:13]} 14. g4 {[%emt 0:02:43]} h6 {[%emt 0:03:10]} 15. Nd2 {[%emt 0:01:01]} g5 {[%emt 0:08:20]} 16. Be5 {[%emt 0:02:03]} Bg7 {[%emt 0:02:07]} 17. Nf1 {[%emt 0:02:01]} O-O {[%emt 0:08:38]} 18. Ne3 {[%emt 0:01:41]} Nd7 {[%emt 0:05:38]} (18... Rfe8 $11 {might be stronger.}) 19. Bxg7 $14 {[%emt 0:02:09]} Kxg7 {[%emt 0:00:05]} 20. Kg2 {[%emt 0:06:42]} Ne5 {[%emt 0:08:23][%cal Oh6h5]} 21. Ne2 {[%emt 0:02:06]} Ng6 {[%emt 0:00:30]} 22. Rd2 {[%emt 0:00:30]} (22. Kg3 {is more complex.} Rcd8 23. a4 Rh8 24. f4) 22... Rcd8 {[%emt 0:00:47]} 23. Rad1 {[%emt 0:00:32]} Rxd2 {[%emt 0:00:05]} 24. Rxd2 {[%emt 1:14:09]} Kf6 {[%emt 0:02:52]} 25. Nd5+ {[%emt 0:00:00]} Bxd5 {[%emt 0:00:08]} 26. Rxd5 $11 {[%emt 0:00:00][%mdl 4096] Endgame KRN-KRN} Ke7 {[%emt 0:03:59]} 27. Kf2 {[%emt 0:00:00]} c6 {[%emt 0:00:18]} (27... Ke6 $11) 28. Rd1 {[%emt 0:00:00]} Rd8 {[%emt 0:04:00]} (28... a5 $14) 29. Rxd8 $16 {[%emt 0:00:00]} Kxd8 {[%emt 0:00:03] [#] KN-KN} 30. Ng3 $1 {[%emt 0:00:00]} Nf4 {[%emt 0:01:57]} 31. Nf5 {[%emt 0:00:00]} h5 {[%emt 0:02:17]} 32. Nd6 {[%emt 0:00:00]} f6 {[%emt 0:02:23] [#]} 33. e5 $1 {[%emt 0:00:00]} hxg4 $2 {[%emt 0:06:47] This move loses the game for Black.} (33... Kd7 $16 {keeps fighting.}) 34. fxg4 {[%emt 0:00:00]} Kd7 {[%emt 0:12:27]} ({Not} 34... fxe5 35. Nf7+ Ke7 36. Nxg5 $16) (34... Ke7 {was worth a try.} 35. Ne4 Ne6) 35. Ne4 $18 {[%emt 0:00:00]} fxe5 {[%emt 0:00:00]} 36. Nxg5 {[%emt 0:00:00]} Ke7 {[%emt 0:00:00]} 37. h4 {[%emt 0:00:00][%cal Bh2h4,Bh4h5][%mdl 32]} Kf6 {[%emt 0:00:00]} 38. Ne4+ {[%emt 0:00:00]} Kg6 {[%emt 0:00:00]} 39. h5+ {[%emt 0:00:00]} Kh6 {[%emt 0:00:00]} 40. Kg3 {[%emt 0:00:00]} c4 {[%emt 0:00:00]} 41. Nd6 {[%emt 0:00:00]} Ne2+ $2 {[%emt 0:03:30]} (41... c3 42. bxc3 Kg5 43. Ne4+ Kh6) 42. Kh4 {[%emt 0:00:00] aiming for g5+.} c3 {[%emt 0:00:00]} 43. g5+ {[%emt 0:00:00][%cal Bg4g5,Bg5g6,Bg6g7][%mdl 32]} Kg7 {[%emt 0:01:00]} 44. Nf5+ {[%emt 0:10:00]} Kh8 {[%emt 0:00:00]} 45. bxc3 {[%emt 0:00:00] White mates.} Nxc3 {[%emt 0:01:00]} 46. g6 {[%emt 0:00:00]} Nd5 {[%emt 0:00:00]} 47. c4 {[%emt 0:00:00]} Nf6 {[%emt 0:01:00]} 48. Kg5 {[%emt 0:00:00]} Ne4+ {[%emt 0:00:00]} 49. Kh6 {[%emt 0:00:00]} Nf6 {[%emt 0:00:00]} 50. g7+ {[%emt 0:00:00] Weighted Error Value: White=0.09 (flawless) /Black=0.34} 1-0

[Event "Charlotte Summer IM B 2022"]
[Site "Charlotte"]
[Date "2022.07.28"]
[Round "8.1"]
[White "Zaloznyy, Mike"]
[Black "Eckert, Doug"]
[Result "1-0"]
[ECO "C22"]
[WhiteElo "2171"]
[BlackElo "2177"]
[Annotator "TA"]
[PlyCount "75"]
[EventDate "2022.07.24"]
[EventType "tourn"]
[EventCountry "USA"]
[SourceTitle "playchess.com"]
[Source "ChessBase"]
[SourceQuality "1"]
[TimeControl "5400+30"]

{[%evp 9,75,0,1,0,1,2,12,6,11,0,13,0,0,18,18,26,30,9,27,51,27,27,49,11,6,20,136,35,35,51,42,-160,-158,-159,-160,-162,-134,-143,-158,-124,-58,-54,0,0,0,0,0,0,0,0,0,0,0,0,0,0,38,38,8,10,233,235,517,491,485,466,433,412]} 1. e4 {[%emt 0:00:15]} e5 {[%emt 0:06:21]} 2. d4 {[%emt 0:00:15]} exd4 {[%emt 0:00:03]} 3. Qxd4 {[%emt 0:00:13]} Nc6 {[%emt 0:00:03]} 4. Qe3 {[%emt 0:00:11]} Nf6 {[%emt 0:00:23]} 5. Bd2 {[%emt 0:00:10]} Bb4 {[%emt 0:16:09]} 6. a3 {[%emt 0:00:13] C22: Centre Game.} Bxd2+ {[%emt 0:02:05]} 7. Nxd2 {[%emt 0:00:13]} O-O {[%emt 0:01:26]} 8. O-O-O {[%emt 0:00:14] The position is equal.} Re8 {[%emt 0:01:14]} 9. f4 {[%emt 0:00:21]} d6 {[%emt 0:06:09]} 10. Bd3 {[%emt 0:00:45]} Rb8 {[%emt 0:06:50]} 11. Ne2 {[%emt 0:00:46]} b5 {[%emt 0:02:24]} 12. Rhe1 {[%emt 0:02:16]} Be6 {[%emt 0:04:06]} 13. h3 {[%emt 0:04:26] [#]} b4 $146 {[%emt 0:01:34]} ({Predecessor:} 13... Qc8 14. e5 dxe5 15. Ne4 Nd7 16. g4 b4 17. f5 Bd5 18. f6 Re6 19. Ng5 Nxf6 20. Nxe6 fxe6 {½-½ (56) Boulanger,M (2128)-Naeter,B (2265) ICCF email 2018}) 14. a4 {[%emt 0:00:17]} b3 {[%emt 0:00:33]} 15. c3 {[%emt 0:00:57]} Nd7 {[%emt 0:10:26]} 16. Bb5 {[%emt 0:09:22]} (16. e5 $5 {[%cal Re3e4]} Nc5 17. Bb5 $14) 16... Na5 {[%emt 0:00:17][%cal Oa7a6]} 17. Nd4 {[%emt 0:02:36]} (17. Qxa7 c6 18. f5 Nc5 19. fxe6 Re7 20. exf7+ Rxf7 21. Qxf7+ Kxf7 22. Bc4+ Nxc4 23. Nxc4 Qg5+ 24. Kb1 Nxa4 $19) 17... c5 {[%emt 0:06:12]} (17... a6 $11 18. Bxa6 (18. Nxe6 fxe6 19. Bxa6 Nc5 $11) 18... Nc5 19. Nxe6 (19. Bb5 Bd7 $11) 19... fxe6) 18. N4f3 {[%emt 0:03:28]} (18. Nxe6 $16 Rxe6 19. Nf3) 18... a6 {[%emt 0:08:43]} 19. Bxa6 {[%emt 0:02:23]} Nb6 {[%emt 0:02:37]} 20. Nb1 $2 {[%emt 0:07:50] [#]} (20. Bb5 $14 {keeps the upper hand.}) 20... Bc4 $1 $17 {[%emt 0:04:49]} ({Much worse is} 20... Nxa4 $6 21. Na3 $14) 21. Bb5 {[%emt 0:01:29]} Bxb5 {[%emt 0:00:30]} 22. axb5 {[%emt 0:00:07]} Nac4 {[%emt 0:01:33]} ({Don't do} 22... Nbc4 23. Qd3 $16) 23. Qd3 {[%emt 0:04:03]} Ra8 {[%emt 0:00:47][%mdl 1024] Black has strong compensation.} 24. Re2 {[%emt 0:11:25]} Qd7 {[%emt 0:05:22]} (24... Qf6 $17 25. g3 Qe6) 25. e5 $15 {[%emt 0:02:44] [#] Hoping for Ng5.} d5 {[%emt 0:00:40]} (25... f6 $15) 26. Ng5 $36 {[%emt 0:01:03][%mdl 2048] White is more active.} g6 {[%emt 0:02:59] Strongly threatening ...Ra1.} 27. Ne4 $1 {[%emt 0:04:55]} dxe4 {[%emt 0:00:04]} 28. Qxd7 {[%emt 0:00:10]} Nxd7 {[%emt 0:00:01]} 29. Rxd7 {[%emt 0:00:14]} e3 {[%emt 0:00:03]} 30. Na3 $1 {[%emt 0:08:36]} Nxa3 {[%emt 0:00:07]} 31. bxa3 {[%emt 0:00:10]} Rxa3 {[%emt 0:00:43] ...c4 is the strong threat.} 32. Rxe3 {[%emt 0:03:47][%mdl 4096] Endgame Threatens to win with Kb2. KRR-KRR} c4 {[%emt 0:05:42]} (32... Rea8 $5 {[%cal Rc5c4]} 33. Kb2 R8a4 34. Rd8+ Kg7 $11) 33. Re4 $1 {[%emt 0:07:21]} Ra1+ {[%emt 0:03:50]} 34. Kb2 {[%emt 0:00:17]} Ra2+ {[%emt 0:00:14]} (34... Ra4 $1 $11 {and Black has nothing to worry.} 35. Red4 Kg7) 35. Kb1 $18 {[%emt 0:00:24]} Rb8 {[%emt 0:02:13]} (35... Ra4 {might work better.}) 36. Rxc4 {[%emt 0:01:05] White is clearly winning.} Rxb5 {[%emt 0:00:05]} 37. e6 {[%emt 0:00:13][%cal Be5e6,Be6f7][%mdl 32]} Re2 {[%emt 0:01:00]} 38. exf7+ {[%emt 0:03:27] What a bad dream for Black.  Weighted Error Value: White=0.16 (very precise) /Black=0.26 (precise)} 1-0

[Event "Charlotte Summer IM B 2022"]
[Site "Charlotte"]
[Date "2022.07.28"]
[Round "8.2"]
[White "Homa, Seth"]
[Black "Wang, Tianqi"]
[Result "0-1"]
[ECO "D37"]
[WhiteElo "2237"]
[BlackElo "2402"]
[Annotator "TA"]
[PlyCount "146"]
[EventDate "2022.07.24"]
[EventType "tourn"]
[EventCountry "USA"]
[SourceTitle "playchess.com"]
[Source "ChessBase"]
[SourceQuality "1"]
[TimeControl "5400+30"]

{[%evp 11,146,11,29,10,16,6,17,0,0,-14,0,0,4,-10,-7,-26,-12,-17,-15,-20,-9,-18,-67,-90,-72,-159,-161,-154,-131,-162,-32,-12,-16,-15,-22,-16,-41,-31,-39,-39,0,0,0,-57,0,-115,-110,-157,-90,-144,-145,-125,-125,-125,-125,-142,-139,-151,-153,-161,-162,-159,-159,-179,-179,-179,-179,-208,-179,-179,-179,-179,-179,-179,-134,-251,-247,-229,-245,-238,-242,-234,-230,-233,-225,-202,-233,-559,-534,-621,-432,-869,-632,-638,-621,-627,-593,-537,-564,-839,-846,-904,-834,-800,-706,-677,-658,-608,-395,-4736,-4208,-29961,-2296,-2296,-2296,-1741,-83,-83,-83,-83,-8,-29967,-29968,-29967,-29968,-29972,-29975,-29976,-29977,-29980,-29981,-29984,-29982,-29982,-29983,-29983,-29984]} 1. d4 {[%emt 0:00:02]} d5 {[%emt 0:09:42]} 2. c4 {[%emt 0:00:15]} e6 {[%emt 0:00:06]} 3. Nf3 {[%emt 0:00:11]} Nf6 {[%emt 0:00:08]} 4. Nc3 {[%emt 0:00:12]} Be7 {[%emt 0:00:03]} 5. Bf4 {[%emt 0:01:07]} O-O {[%emt 0:00:05]} 6. e3 {[%emt 0:00:08]} Nbd7 {[%emt 0:00:05]} 7. c5 {[%emt 0:00:24] D37: Queen's Gambit Declined: 5 Bf4.} c6 {[%emt 0:00:03]} 8. b4 {[%emt 0:01:01] 8.h3 gains popularity.} b6 {[%emt 0:00:13]} 9. h4 {[%emt 0:00:34] The position is equal.} a5 {[%emt 0:00:06]} 10. a3 {[%emt 0:00:16] [#]} h6 $146 {[%emt 0:00:05]} ({Predecessor:} 10... Ne4 11. Nxe4 dxe4 12. Ne5 Nxe5 13. Bxe5 Qd5 14. Be2 b5 15. h5 Bb7 16. O-O axb4 17. axb4 Rxa1 18. Qxa1 {0-1 (42) Shankland,S (2709)-Nakamura,H (2750) Chess.com INT 2022}) 11. Bd3 {[%emt 0:00:52]} Ba6 {[%emt 0:00:06]} 12. Bxa6 {[%emt 0:01:08]} Rxa6 {[%emt 0:00:08]} 13. b5 {[%emt 0:00:11]} cxb5 {[%emt 0:00:04]} 14. c6 {[%emt 0:00:13]} Qc8 $36 {[%emt 0:00:04][%mdl 2048] Black has some pressure.} 15. c7 {[%emt 0:00:09]} b4 {[%emt 0:00:02]} 16. Nb5 {[%emt 0:00:51]} a4 {[%emt 0:00:05] Threatens to win with ...b3.} 17. axb4 {[%emt 0:07:10]} Bxb4+ {[%emt 0:01:11]} 18. Ke2 {[%emt 0:00:08]} ({White should play} 18. Kf1) 18... Ra5 $17 {[%emt 0:00:13]} 19. Qd3 {[%emt 0:00:12]} Ne4 {[%emt 0:00:50]} 20. Rhc1 {[%emt 0:00:51]} Qa8 {[%emt 0:07:03]} (20... e5 $1 $19 {[%cal Re5f4]} 21. Rab1 (21. Bxe5 Nxe5 22. dxe5 Qd7 $17) 21... exf4 22. Rxb4 fxe3 23. fxe3 (23. Qxe3 $2 Qa6 $19) 23... Ndf6) 21. Rab1 {[%emt 0:05:34]} Be7 {[%emt 0:00:40]} 22. Ne5 $1 {[%emt 0:02:20]} Nxe5 {[%emt 0:02:46]} 23. Bxe5 {[%emt 0:00:33]} Rc8 $1 {[%emt 0:01:49]} (23... Bxh4 $2 24. f3 Nf2 25. Qa3 $18) 24. f3 {[%emt 0:00:29]} Nf6 {[%emt 0:00:15]} 25. g4 {[%emt 0:04:43]} Ne8 {[%emt 0:03:47]} 26. g5 $1 {[%emt 0:11:43]} h5 {[%emt 0:01:05]} 27. Rc2 {[%emt 0:09:49]} (27. g6 $11 f6 28. Bg3) 27... a3 {[%emt 0:01:19]} (27... Qa6 $15) 28. Ra2 {[%emt 0:00:53]} (28. g6 $1 $11 f6 29. Bg3) 28... Qc6 {[%emt 0:03:30]} 29. Qb3 {[%emt 0:00:23]} (29. Rc2 $142 Qd7 30. Qb3) 29... Qd7 {[%emt 0:04:50]} (29... Nxc7 $142 30. Nxc7 Rxc7 31. Bxc7 Qxc7) 30. Kd3 {[%emt 0:06:03]} (30. Rc2 $142) 30... Bd6 {[%emt 0:08:11]} ({Stronger than} 30... Nxc7 31. Nxc7 Rxc7 32. Bxc7 (32. Qxb6 Rca7 $17) 32... Qxc7 33. Qc2 $15 (33. Rc2 Qg3 $17)) 31. Nxd6 {[%emt 0:00:55]} Nxd6 {[%emt 0:00:15] Chess con chili.} 32. Bxd6 {[%emt 0:04:39]} Qxd6 {[%emt 0:00:26]} 33. Qxb6 {[%emt 0:00:09]} Qxc7 {[%emt 0:00:08]} 34. Qxc7 {[%emt 0:00:12]} Rxc7 {[%emt 0:00:02][%mdl 4096] Endgame KRR-KRR} 35. Rba1 {[%emt 0:04:40]} Rca7 {[%emt 0:00:27]} 36. Ke2 {[%emt 0:03:17]} Kh7 {[%emt 0:00:51]} 37. Kf2 {[%emt 0:00:42]} Kg6 {[%emt 0:00:09]} 38. Kg3 {[%emt 0:00:07]} Kf5 {[%emt 0:58:38]} 39. Rb1 {[%emt 0:00:38]} f6 {[%emt 0:00:00]} 40. gxf6 {[%emt 0:01:19]} gxf6 {[%emt 0:00:00]} 41. Rb3 {[%emt 0:01:43]} e5 {[%emt 0:00:00]} 42. Rd3 {[%emt 0:01:17]} Ke6 {[%emt 0:00:00]} 43. Rb3 {[%emt 0:03:45]} (43. dxe5 $17 fxe5 44. e4) 43... exd4 $19 {[%emt 0:00:00]} 44. exd4 {[%emt 0:00:26]} Ra4 {[%emt 0:00:00]} 45. Rd3 {[%emt 0:01:01]} Kf5 {[%emt 0:00:00]} 46. Re3 {[%emt 0:08:48]} Rg7+ {[%emt 0:00:00]} 47. Kf2 {[%emt 0:00:02]} Rxd4 {[%emt 0:00:00]} 48. Raxa3 {[%emt 0:00:08]} Rxh4 {[%emt 0:00:00] aiming for ...Rh2+.} 49. Ra5 $2 {[%emt 0:00:14]} (49. Red3) 49... Rd4 {[%emt 0:00:00]} 50. Re8 {[%emt 0:00:15]} Kf4 {[%emt 0:00:00]} 51. Rh8 {[%emt 0:01:07]} (51. Ra2 $142) 51... Rg5 {[%emt 0:00:00]} 52. Rh6 {[%emt 0:00:19]} Rf5 {[%emt 0:00:00] And now ...Rd2+ would win.} 53. Ra6 {[%emt 0:02:39]} Kg5 {[%emt 0:00:00]} 54. Rh8 {[%emt 0:00:09]} Rd3 {[%emt 0:00:00]} 55. Rg8+ {[%emt 0:00:24]} Kh4 {[%emt 0:00:00]} 56. Ra4+ {[%emt 0:01:31]} d4 {[%emt 0:00:00]} 57. Ke2 {[%emt 0:00:55]} Re3+ {[%emt 0:00:00]} 58. Kd2 {[%emt 0:00:02]} Rexf3 {[%emt 0:00:00]} 59. Rxd4+ {[%emt 0:00:08]} R3f4 {[%emt 0:00:00]} 60. Rxf4+ {[%emt 0:01:25]} (60. Rd3) 60... Rxf4 {[%emt 0:00:00] KR-KR} 61. Ke3 {[%emt 0:00:08]} Rf5 {[%emt 0:00:00]} (61... Rf1 $142 62. Ke2 Rf5 63. Rg6 Kh3 64. Ke3 h4 65. Rg8 Kh2 66. Ke4 Rg5 67. Rc8 Kg3 68. Rc3+ Kg4 69. Rc1 h3 70. Ke3 h2 71. Kf2 Rc5 $3 {[%mdl 512]} 72. Rxc5 h1=Q 73. Rc4+ Kg5 74. Rc5+ f5 75. Rc8 Qd5 76. Rc2 f4 77. Ke2 f3+ 78. Ke3 Qb3+ 79. Kd2 f2 80. Rc5+ Kf4 81. Rc1 Qb2+ 82. Rc2 Qd4+ 83. Ke2 Qe4+ 84. Kxf2 Qxc2+ 85. Ke1 Kf3 86. Kf1 Qf2#) 62. Rg1 {[%emt 0:00:36]} Kh3 $1 {[%emt 0:00:00]} 63. Ke4 {[%emt 0:00:10] [#]} Rg5 $2 {[%emt 0:00:00]} (63... Kh2 $1 $19 {and Black stays clearly on top.} 64. Rg6 Rf1) 64. Rf1 $17 {[%emt 0:03:58] [#]} Re5+ $1 {[%emt 0:00:00]} 65. Kf4 {[%emt 0:00:11]} Kg2 {[%emt 0:00:00]} (65... Rc5 $17 {( -> ...Kg2)} 66. Rf3+ Kg2 67. Rg3+ Kf2 68. Rf3+ Kg2 69. Rg3+ Kh2) 66. Ra1 $2 {[%emt 0:00:14][%mdl 8192] Loses the game.} (66. Rf2+ $11 Kg1 67. Rg2+ Kh1 68. Rg6) 66... Re2 {[%emt 0:00:00] Black mates.} 67. Ra8 {[%emt 0:00:41]} Rf2+ {[%emt 0:00:00]} 68. Ke3 {[%emt 0:00:09]} Rf3+ {[%emt 0:00:00]} 69. Ke2 {[%emt 0:02:56]} h4 {[%emt 0:00:00][%cal Bh5h4,Bh4h3,Bh3h2][%mdl 32]} 70. Ra4 {[%emt 0:01:41]} h3 {[%emt 0:00:00]} 71. Rh4 {[%emt 0:00:05]} Rg3 {[%emt 0:00:00]} 72. Rf4 {[%emt 0:00:19]} h2 {[%emt 0:00:00]} 73. Rf2+ {[%emt 0:00:04]} Kh3 {[%emt 0:00:00] Weighted Error Value: White=0.35/Black=0.16 (very precise)} 0-1

[Event "Charlotte Summer IM B 2022"]
[Site "Charlotte"]
[Date "2022.07.28"]
[Round "8.3"]
[White "Mishra, Prateek"]
[Black "Avila Rodriguez, Joshua Ad"]
[Result "1/2-1/2"]
[ECO "B99"]
[WhiteElo "2204"]
[BlackElo "2210"]
[Annotator "TA"]
[PlyCount "63"]
[EventDate "2022.07.24"]
[EventType "tourn"]
[EventCountry "USA"]
[SourceTitle "playchess.com"]
[Source "ChessBase"]
[SourceQuality "1"]
[TimeControl "5400+30"]

{[%evp 22,63,51,55,50,55,48,37,46,2,0,0,0,0,0,0,0,0,0,0,0,0,2,0,67,29,29,31,33,21,30,22,21,19,23,-40,2,0,35,38,30,31,62,33]} 1. e4 {[%emt 0:02:25]} c5 {[%emt 0:00:47]} 2. Nf3 {[%emt 0:00:07]} d6 {[%emt 0:00:19]} 3. d4 {[%emt 0:00:06]} cxd4 {[%emt 0:00:07]} 4. Nxd4 {[%emt 0:00:05]} Nf6 {[%emt 0:00:06]} 5. Nc3 {[%emt 0:00:06]} a6 {[%emt 0:00:08]} 6. Bg5 {[%emt 0:00:07]} e6 {[%emt 0:00:51]} 7. f4 {[%emt 0:00:06]} Be7 {[%emt 0:01:54]} 8. Qf3 {[%emt 0:00:07]} Qc7 {[%emt 0:00:05]} 9. O-O-O {[%emt 0:00:13]} Nbd7 {[%emt 0:03:01]} 10. g4 {[%cal Bg2g4,Bg4g5][%mdl 32]} h6 {[%emt 1:28:12]} 11. Bxf6 {[%emt 0:00:24]} Bxf6 {[%emt 0:00:00]} 12. h4 Nb6 {[%emt 0:01:00] is the new trend. B99: Sicilian Najdorf: 6 Bg5 e6 7 f4 Be7 8 Qf3 Qc7 9 0-0-0 Nbd7.} 13. g5 {[%emt 0:00:36]} Bxd4 {[%emt 0:00:00]} 14. Rxd4 {[%emt 0:00:06]} Qc5 {[%emt 0:00:00]} 15. Qd3 {[%emt 0:00:05]} hxg5 $1 {[%emt 0:00:00]} 16. b4 {[%emt 0:00:08][%mdl 64] Deflection} ({Much worse is} 16. Rxd6 {[#]} Nd5 $1 17. Rxd5 exd5 18. fxg5 dxe4 19. Nxe4 Qa5 $17) 16... Qc7 {[%emt 0:00:00]} 17. fxg5 {[%emt 0:00:09]} Bd7 {[%emt 0:00:00]} 18. Rxd6 {[%emt 0:00:36] Qd4 is the strong threat.} Nc8 $1 {[%emt 0:00:00]} 19. Rd4 {[%emt 0:00:12][%cal Og5g6]} Nb6 {[%emt 0:00:00] [#]} 20. Rd6 $146 {[%emt 0:04:37] aiming for Qd4.} ({Predecessor:} 20. g6 fxg6 21. Rd6 O-O-O 22. Bh3 e5 23. Bxd7+ Rxd7 24. Rxd7 Qxd7 25. Rg1 Qc6 26. Nd5 Kb8 27. Qc3 Qxc3 28. Nxc3 Rxh4 29. Rxg6 {½-½ (59) Roebers,E (2331)-Cvitan,O (2458) Terme Catez 2022}) 20... Nc8 $1 {[%emt 0:04:00]} 21. Rd4 {[%emt 0:00:05][%cal Oe4e5]} Nb6 {[%emt 0:00:30]} 22. e5 {[%emt 0:00:22]} Bc6 {[%emt 0:00:00]} (22... Qxe5 $11 23. Bg2 Rb8) 23. Rh2 {[%emt 0:10:21] White is more active.} (23. Rh3 $5 {[%cal Rc3e4]}) 23... Qxe5 {[%emt 0:00:00]} 24. Re2 {[%emt 0:01:16]} Qc7 {[%emt 0:00:00]} 25. g6 {[%emt 0:02:49]} O-O {[%emt 0:00:00]} 26. gxf7+ {[%emt 0:11:24]} Qxf7 {[%emt 0:00:00]} 27. Bh3 {[%emt 0:02:51]} Rae8 {[%emt 0:00:00]} 28. Ne4 {[%emt 0:11:47]} ({White should play} 28. Re5 $11) 28... Qf4+ {[%emt 0:00:00]} (28... e5 $5 29. Ng5 Qh5 $17) 29. Kb1 {[%emt 0:05:09] Strongly threatening Ng5.} Bb5 {[%emt 0:00:00]} 30. c4 {[%emt 0:01:14]} Nxc4 {[%emt 0:04:30]} 31. Rxc4 {[%emt 0:01:26]} Qxh4 {[%emt 0:00:00] [#]} 32. Rh2 $1 {[%emt 0:12:59] Weighted Error Value: White=0.13 (very precise) /Black=0.12 (very precise)} 1/2-1/2

[Event "Charlotte Summer IM B 2022"]
[Site "Charlotte"]
[Date "2022.07.28"]
[Round "8.4"]
[White "Kolay, Alex"]
[Black "Ringoir, Tanguy"]
[Result "1/2-1/2"]
[ECO "D90"]
[WhiteElo "2188"]
[BlackElo "2490"]
[Annotator "TA"]
[PlyCount "39"]
[EventDate "2022.07.24"]
[EventType "tourn"]
[EventCountry "USA"]
[SourceTitle "playchess.com"]
[Source "ChessBase"]
[SourceQuality "1"]
[TimeControl "5400+30"]

{[%evp 9,39,0,3,2,7,9,24,24,31,0,3,0,0,0,0,11,0,0,7,0,6,0,0,0,0,0,0,0,0,0,0,0]} 1. d4 {[%emt 0:06:02]} Nf6 {[%emt 0:00:05]} 2. c4 {[%emt 0:00:07]} g6 {[%emt 0:00:06]} 3. Nc3 {[%emt 0:00:06]} d5 {[%emt 0:00:05]} 4. Nf3 {[%emt 0:00:06]} Bg7 {[%emt 0:00:05]} 5. h4 {[%emt 0:00:07]} c6 {[%emt 0:00:04]} 6. cxd5 {[%emt 0:00:30] D90: Grünfeld: 4 Nf3 Bg7 sidelines.} cxd5 {[%emt 0:00:01]} 7. Bf4 {[%emt 0:00:11]} Nc6 {[%emt 0:00:34]} 8. e3 {[%emt 0:00:14] White has an edge.} O-O {[%emt 0:00:23]} 9. Ne5 {[%emt 0:00:36]} Nxe5 {[%emt 0:00:42] The position is equal.} 10. Bxe5 {[%emt 0:00:05]} Ne4 {[%emt 0:00:05]} 11. Bxg7 {[%emt 0:00:12]} Nxc3 {[%emt 0:00:06]} 12. bxc3 {[%emt 0:00:06]} Kxg7 {[%emt 0:00:04]} 13. h5 {[%emt 0:00:08] [#]} Be6 $146 {[%emt 0:00:06]} ({Predecessor:} 13... Qa5 14. Qd2 Bf5 15. hxg6 hxg6 16. c4 Qxd2+ 17. Kxd2 dxc4 18. Bxc4 Rfd8 19. Bd3 e5 20. Bxf5 gxf5 {½-½ (35) Baenziger,F (2347)-Kantans,T (2528) Deutschlandsberg 2019}) 14. Qd2 {[%emt 0:02:31][%cal Oe3e4]} Qd6 {[%emt 0:00:07]} 15. e4 {[%emt 0:02:23]} dxe4 {[%emt 0:00:08]} 16. hxg6 {[%emt 0:00:10]} hxg6 {[%emt 0:00:05]} 17. Qh6+ {[%emt 0:00:09]} Kf6 {[%emt 0:00:02][%cal Of8h8] [#] ...Rh8! is the strong threat.} 18. Qh4+ {[%emt 0:00:10]} Kg7 $1 {[%emt 0:00:04] And now ...Rh8 would win.} 19. Qh6+ {[%emt 0:00:06]} Kf6 {[%emt 0:00:04][%cal Of8h8] Strongly threatening ...Rh8!} 20. Qh4+ {[%emt 0:00:04] An even fight not without its subleties.  Weighted Error Value: White=0.03 (flawless) /Black=0.01 (flawless)} 1/2-1/2